bitfinex-derivatives/quotes_SOLF0:USTF0_20250523
["timestamp","ask_amount","ask_price","bid_price","bid_amount"]
[1747997658420,111.74,186.03,185.93,111.74]
[1747997658717,116.68676243,186.03,185.93,111.74]
[1747997659224,0.03851989,186.0,185.96,0.03393575]
[1747997659418,5.3768,185.99,185.96,5.41123575]
[1747997659823,0.03851989,186.0,185.96,0.03393575]
[1747997660025,5.41501989,186.0,185.97,5.3772]
[1747997660524,5.41491989,186.0,185.97,5.3772]
[1747997661025,0.03851989,186.0,185.98,5.3767]
[1747997661318,0.03851989,186.0,185.96,0.03393575]
[1747997661719,5.41481989,186.0,185.97,5.3771]
[1747997662527,0.03851989,186.0,185.98,5.3768]
[1747997662823,0.03851989,186.0,185.96,0.03393575]
[1747997663129,5.41481989,186.0,185.97,5.377]
[1747997663320,5.41481989,186.0,185.96,0.03393575]
[1747997663321,0.03851989,186.0,185.96,0.03393575]
[1747997663621,0.03851989,186.0,185.98,5.3766]
[1747997664828,5.41491989,186.0,185.97,5.3771]
[1747997665321,5.3769,185.98,185.96,0.03393575]
[1747997666028,0.03851989,186.0,185.96,0.03393575]
[1747997666828,0.03851989,186.0,185.99,5.3766]
[1747997677246,0.03851989,186.0,185.98,111.72]
[1747997677445,0.03851989,186.0,185.96,4.23911952]
[1747997677945,5.3766,185.99,185.96,9.61651952]
[1747997678442,5.3766,185.99,185.96,5.41133575]
[1747997678652,5.3766,185.99,185.97,5.3772]
[1747997678945,5.41491989,186.0,185.96,0.03393575]
[1747997679242,0.03851989,186.0,185.96,0.03393575]
[1747997679543,5.3772,185.97,185.96,0.03393575]
[1747997686151,117.0172,185.97,185.96,0.03393575]
[1747997700864,5.3791,185.91,185.87,4.20518377]
[1747997701252,5.3791,185.91,185.88,5.3796]
[1747997701861,5.41865957,185.91,185.88,5.41379034]
[1747997702359,0.03955957,185.91,185.88,0.03419034]
[1747997703568,0.03955957,185.91,185.9,5.3792]
[1747997704771,111.64,185.97,185.88,0.03419034]
[1747997705266,5.3788,185.92,185.88,0.03419034]
[1747997705569,5.3788,185.92,185.89,5.3793]
[1747997705770,5.41503206,185.92,185.89,5.3793]
[1747997706570,5.379,185.91,185.89,5.3793]
[1747997706766,0.03623206,185.92,185.89,5.3793]
[1747997707263,5.41503206,185.92,185.89,5.3793]
[1747997708171,5.41503206,185.92,185.9,5.3792]
[1747997709066,0.03623206,185.92,185.9,5.3792]
[1747997710166,0.03623206,185.92,185.91,5.3789]
[1747997712076,0.03623206,185.92,185.89,5.3794]
[1747997712375,5.41493206,185.92,185.89,5.3794]
[1747997712777,0.03623206,185.92,185.9,5.3791]
[1747997713276,0.03623206,185.92,185.9,3.37562198]
[1747997713574,0.03623206,185.92,185.91,5.3789]
[1747997715379,0.03623206,185.92,185.9,3.37562198]
[1747997715380,5.41483206,185.92,185.9,5.3791]
[1747997715877,0.03623206,185.92,185.88,3.40981232]
[1747997716185,0.03623206,185.92,185.89,5.3793]
[1747997716772,0.03623206,185.92,185.88,0.03419034]
[1747997717375,5.3792,185.91,185.88,0.03419034]
[1747997718074,5.3792,185.91,185.88,5.41389034]
[1747997718783,5.41503206,185.92,185.89,5.3795]
[1747997720182,0.03623206,185.92,185.9,5.3791]
[1747997721385,5.41493206,185.92,185.89,5.3794]
[1747997721780,0.03623206,185.92,185.89,5.3794]
[1747997722082,5.379,185.91,185.88,5.41389034]
[1747997722285,0.03623206,185.92,185.88,0.03419034]
[1747997722688,5.41513206,185.92,185.89,5.3795]
[1747997722986,0.03623206,185.92,185.88,0.03419034]
[1747997723985,5.379,185.91,185.88,5.41379034]
[1747997724182,5.379,185.91,185.88,0.03419034]
[1747997724588,5.379,185.91,185.88,5.41389034]
[1747997725189,5.379,185.91,185.89,5.3795]
[1747997727292,5.379,185.91,185.88,5.41389034]
[1747997727890,5.379,185.91,185.88,3.77977618]
[1747997728891,5.379,185.91,185.88,3.82070884]
[1747997728892,3.75289062,185.91,185.88,3.82070884]
[1747997729187,3.75289062,185.91,185.89,5.3795]
[1747997729888,5.3795,185.89,185.88,0.04093266]
[1747997730489,5.3801,185.87,185.86,4.20518377]
[1747997730988,5.3799,185.88,185.86,4.20518377]
[1747997731190,113.48803206,185.92,185.86,4.20518377]
[1747997731390,113.48803206,185.92,185.87,0.03709321]
[1747997731586,5.3798,185.88,185.87,0.03709321]
[1747997733300,0.03623206,185.92,185.87,0.03709321]
[1747997734897,5.41483206,185.92,185.89,5.3793]
[1747997735699,5.41483206,185.92,185.9,5.3791]
[1747997737199,0.03623206,185.92,185.9,5.3791]
[1747997739501,5.41483206,185.92,185.9,5.3791]
[1747997739704,5.41483206,185.92,185.89,5.3794]
[1747997740098,5.3789,185.91,185.89,5.3794]
[1747997740304,5.3789,185.91,185.88,3.75359062]
[1747997740805,5.3793,185.9,185.87,4.24227698]
[1747997741104,0.03623206,185.92,185.88,5.3798]
[1747997741301,5.379,185.91,185.88,5.3798]
[1747997742301,5.3792,185.9,185.87,5.41719321]
[1747997742515,0.03623206,185.92,185.87,0.03709321]
[1747997743102,5.379,185.91,185.88,5.3796]
[1747997743498,5.379,185.91,185.87,0.03709321]
[1747997743499,0.03623206,185.92,185.87,0.03709321]
[1747997743700,0.03623206,185.92,185.91,5.3789]
[1747997744508,4.94676243,185.98,185.89,116.75605017]
[1747997744806,4.94676243,185.98,185.92,5.27605017]
[1747997745105,4.94676243,185.99,185.92,107.47605017]
[1747997745609,0.03577219,185.97,185.94,0.03745372]
[1747997746209,5.41317219,185.97,185.94,5.41545372]
[1747997746708,5.41307219,185.97,185.94,5.41535372]
[1747997746906,5.41307219,185.97,185.94,0.03745372]
[1747997747108,0.03577219,185.97,185.94,0.03745372]
[1747997748605,0.03577219,185.97,185.95,5.3777]
[1747997749008,0.03577219,185.97,185.94,0.03745372]
[1747997749308,0.03577219,185.97,185.95,5.3778]
[1747997750418,0.03577219,185.97,185.96,5.3775]
[1747997750710,0.03577219,185.97,185.94,0.03745372]
[1747997751112,0.03577219,185.97,185.96,5.3775]
[1747997751815,0.03577219,185.97,185.95,5.3777]
[1747997752915,0.03577219,185.97,185.96,5.3775]
[1747997753410,0.03577219,185.97,185.94,0.03745372]
[1747997754211,0.03577219,185.97,185.95,5.3776]
[1747997754811,0.03577219,185.97,185.94,0.03745372]
[1747997755013,0.03577219,185.97,185.96,5.3775]
[1747997755215,0.03577219,185.97,185.94,0.03745372]
[1747997756912,0.03577219,185.97,185.95,5.3778]
[1747997757810,0.03577219,185.97,185.96,5.3775]
[1747997761917,0.03577219,185.97,185.95,5.3777]
[1747997762118,0.03577219,185.97,185.94,0.03745372]
[1747997762917,5.41307219,185.97,185.94,0.03745372]
[1747997763219,0.03577219,185.97,185.95,5.3778]
[1747997763518,0.03577219,185.97,185.94,0.03745372]
[1747997763719,0.03577219,185.97,185.96,8.75052952]
[1747997764721,0.03577219,185.97,185.95,5.3777]
[1747997765412,0.03577219,185.97,185.94,114.85048324]
[1747997765915,0.03577219,185.97,185.94,0.03745372]
[1747997766414,5.3778,185.95,185.94,0.03745372]
[1747997774924,5.3778,185.95,185.86,5.3803]
[1747997775127,5.2749821,185.96,185.84,4.20518377]
[1747997775425,5.2749821,185.96,185.86,5.3804]
[1747997776019,0.03502831,185.93,185.89,0.03620658]
[1747997776313,5.3789,185.92,185.89,0.03620658]
[1747997776519,111.31502831,185.93,185.89,0.03620658]
[1747997777025,5.3792,185.9,185.89,0.03620658]
[1747997780424,0.03502831,185.93,185.89,0.03620658]
[1747997781323,0.03502831,185.93,185.9,5.379]
[1747997782425,0.03502831,185.93,185.89,5.41560658]
[1747997782830,0.03502831,185.93,185.89,0.03620658]
[1747997783024,4.94676243,185.96,185.91,5.2749821]
[1747997783230,4.94676243,185.96,185.92,3.7179]
[1747997783530,116.24676243,185.96,185.89,0.03620658]
[1747997784024,0.03960083,185.94,185.9,4.20518377]
[1747997784231,5.3785,185.93,185.9,9.58418377]
[1747997784431,5.3785,185.93,185.9,4.20518377]
[1747997784730,0.03960083,185.94,185.9,4.20518377]
[1747997784939,0.03960083,185.94,185.9,9.58418377]
[1747997786630,5.3784,185.93,185.9,9.58418377]
[1747997787126,5.3784,185.93,185.9,5.379]
[1747997788035,5.3786,185.92,185.89,5.41570658]
[1747997788333,0.03960083,185.94,185.89,0.03620658]
[1747997789035,5.3792,185.91,185.89,0.03620658]
[1747997789227,0.03960083,185.94,185.89,0.03620658]
[1747997789428,5.3792,185.9,185.89,0.03620658]
[1747997791838,5.3807,185.85,185.84,4.20518377]
[1747997792039,111.3,185.91,185.84,4.20518377]
[1747997792440,179.2749821,185.9,185.84,4.20518377]
[1747997792836,0.03991413,185.89,185.85,0.04051157]
[1747997793038,5.3804,185.86,185.85,0.04051157]
[1747997793236,116.6804,185.86,185.85,0.04051157]
[1747997796948,116.6804,185.86,185.85,1.157e-05]
[1747997797645,5.3825,185.79,185.76,1.9803]
[1747997797850,111.3,185.86,185.76,1.9803]
[1747997798638,0.03765728,185.83,185.79,0.03570982]
[1747997800651,5.3821,185.8,185.79,0.03570982]
[1747997800840,0.03765728,185.83,185.79,0.03570982]
[1747997801149,5.382,185.81,185.79,0.03570982]
[1747997801647,0.03765728,185.83,185.79,0.03570982]
[1747997802252,5.3821,185.8,185.79,0.03570982]
[1747997805439,116.7219,185.81,185.79,0.03570982]
[1747997806044,0.03765728,185.83,185.79,0.03570982]
[1747997806440,0.03765728,185.83,185.8,5.3818]
[1747997806636,0.03765728,185.83,185.79,0.03570982]
[1747997806847,5.41905728,185.83,185.79,0.03570982]
[1747997807047,5.41905728,185.83,185.8,5.3821]
[1747997807449,5.3816,185.82,185.8,5.3821]
[1747997809052,5.41895728,185.83,185.8,5.3821]
[1747997809245,0.03765728,185.83,185.81,5.3818]
[1747997810348,5.41895728,185.83,185.81,5.3818]
[1747997811049,0.03765728,185.83,185.81,5.3818]
[1747997811250,0.03765728,185.83,185.79,0.03570982]
[1747997811650,0.03765728,185.83,185.81,5.3818]
[1747997812951,5.41895728,185.83,185.8,5.3821]
[1747997815440,5.41895728,185.83,185.79,0.03570982]
[1747997815646,0.03765728,185.83,185.79,0.03570982]
[1747997816151,0.03765728,185.83,185.81,5.3817]
[1747997816856,0.03765728,185.83,185.82,5.3815]
[1747997818759,111.18,185.91,185.86,5.3803]
[1747997818955,5.3797,185.89,185.82,3.8011]
[1747997819256,111.18,185.91,185.82,114.9811]
[1747997819458,4.94676243,185.94,185.82,114.9811]
[1747997819759,0.04028176,185.9,185.86,0.03394628]
[1747997820257,5.3796,185.89,185.86,0.03394628]
[1747997820755,0.04028176,185.9,185.86,0.03394628]
[1747997822361,5.3796,185.89,185.86,0.03394628]
[1747997822552,0.04028176,185.9,185.86,0.03394628]
[1747997823061,5.3796,185.89,185.87,5.3798]
[1747997823761,0.04028176,185.9,185.88,5.3797]
[1747997825658,5.41948176,185.9,185.88,5.3797]
[1747997825963,0.04028176,185.9,185.88,5.3797]
[1747997828060,0.04028176,185.9,185.86,0.03394628]
[1747997828860,0.04028176,185.9,185.89,5.3795]
[1747997832262,0.04028176,185.9,185.88,5.3797]
[1747997832463,0.04028176,185.9,185.86,0.03394628]
[1747997832763,5.3795,185.89,185.87,5.3799]
[1747997832961,0.04028176,185.9,185.86,0.03394628]
[1747997833363,5.41968176,185.9,185.87,5.38]
[1747997833770,5.41968176,185.9,185.86,0.03394628]
[1747997834171,5.41968176,185.9,185.87,5.38]
[1747997834973,5.3795,185.89,185.87,5.38]
[1747997835273,0.04028176,185.9,185.86,0.03394628]
[1747997835573,5.41958176,185.9,185.87,5.3799]
[1747997838180,5.41958176,185.9,185.88,5.3798]
[1747997838369,0.04028176,185.9,185.88,5.3798]
[1747997839079,0.04028176,185.9,185.89,5.3795]
[1747997839271,111.14,185.96,185.89,102.22]
[1747997839671,110.98,186.0,185.94,5.378]
[1747997840377,0.0393308,185.99,185.95,0.03531022]
[1747997840572,0.0393308,185.99,185.95,5.41301022]
[1747997841278,0.0393308,185.99,185.95,0.03531022]
[1747997842075,5.3774,185.97,185.95,0.03531022]
[1747997842275,0.0393308,185.99,185.95,0.03531022]
[1747997843583,5.3775,185.96,185.95,0.03531022]
[1747997854593,5.3775,185.96,185.95,1.022e-05]
[1747997858295,5.2749821,185.97,185.85,103.9911]
[1747997858497,3.7791,185.95,185.85,103.9911]
[1747997858690,3.7791,185.95,185.86,5.3803]
[1747997858893,5.3797,185.89,185.86,5.3803]
[1747997859287,5.4169871,185.89,185.86,5.42012113]
[1747997861699,0.0372871,185.89,185.86,5.42012113]
[1747997861899,0.0372871,185.89,185.86,0.03982113]
[1747997862299,0.0372871,185.89,185.88,5.3798]
[1747997865803,10.35990359,185.96,185.88,5.38]
[1747997865994,4.98220359,185.96,185.89,218.4349821]
[1747997866196,110.96,185.98,185.89,218.4349821]
[1747997866399,5.3774,185.97,185.94,5.378]
[1747997866698,5.41131015,185.97,185.94,5.41807848]
[1747997867604,0.03391015,185.97,185.95,5.3777]
[1747997867808,0.03391015,185.97,185.94,0.04007848]
[1747997868198,0.03391015,185.97,185.95,5.3775]
[1747997868897,0.03391015,185.97,185.94,0.04007848]
[1747997869702,5.41121015,185.97,185.94,0.04007848]
[1747997870499,5.41121015,185.97,185.94,5.41807848]
[1747997871300,5.41121015,185.97,185.95,5.3777]
[1747997871506,5.41121015,185.97,185.94,0.04007848]
[1747997871807,5.41121015,185.97,185.94,5.41807848]
[1747997872709,5.41121015,185.97,185.95,5.3777]
[1747997873008,0.03391015,185.97,185.95,5.3777]
[1747997874616,5.41111015,185.97,185.95,5.3777]
[1747997875103,0.03391015,185.97,185.94,0.04007848]
[1747997875809,0.03391015,185.97,185.94,110.80007848]
[1747997876212,0.03391015,185.97,185.95,5.3778]
[1747997876405,0.03391015,185.97,185.94,110.80007848]
[1747997877310,0.03391015,185.97,185.96,5.3775]
[1747997878811,0.03391015,185.97,185.96,107.5575]
[1747997879010,0.03391015,185.97,185.96,102.18]
[1747997879909,0.03391015,185.97,185.95,7.3102]
[1747997880710,5.41111015,185.97,185.95,1.9325]
[1747997881009,0.03391015,185.97,185.95,1.9325]
[1747997881410,0.03391015,185.97,185.95,7.3101]
[1747997881804,0.03391015,185.97,185.95,1.9325]
[1747997882004,0.03391015,185.97,185.96,5.3775]
[1747997883608,110.74,186.06,185.96,5.2749821]
[1747997883805,4.98220359,186.07,185.99,5.2749821]
[1747997884015,5.3751,186.05,185.99,116.0149821]
[1747997884308,4.98220359,186.07,186.02,5.2749821]
[1747997884501,4.98220359,186.07,186.02,107.4549821]
[1747997884808,0.03755248,186.06,186.03,0.03565117]
[1747997885016,5.41225248,186.06,186.03,0.03565117]
[1747997885617,5.375,186.05,186.03,0.03565117]
[1747997885916,0.03755248,186.06,186.03,5.41105117]
[1747997886111,0.03755248,186.06,186.03,0.03565117]
[1747997887013,0.03755248,186.06,186.04,5.3751]
[1747997887215,5.41235248,186.06,186.03,0.03565117]
[1747997887518,5.41235248,186.06,186.03,5.41105117]
[1747997888517,0.03755248,186.06,186.04,5.3751]
[1747997889211,0.03755248,186.06,186.05,5.3749]
[1747997890513,0.03755248,186.06,186.03,10.68583327]
[1747997890814,0.03755248,186.06,186.03,5.31063327]
[1747997891017,0.03755248,186.06,186.04,5.3752]
[1747997891211,0.03755248,186.06,186.03,5.31063327]
[1747997892117,0.03755248,186.06,186.03,0.03565117]
[1747997892621,0.03755248,186.06,186.04,5.3751]
[1747997893011,0.03755248,186.06,186.03,0.03565117]
[1747997893317,5.41235248,186.06,186.03,5.41095117]
[1747997893721,5.3751,186.05,186.03,0.03565117]
[1747997894925,5.3752,186.04,186.03,0.03565117]
[1747997905133,5.3749,186.05,186.03,0.03565117]
[1747997905346,0.03755248,186.06,186.03,0.03565117]
[1747997905838,0.03755248,186.06,186.04,5.3751]
[1747997906441,0.03755248,186.06,186.05,5.3749]
[1747997906640,0.03755248,186.06,186.03,0.03565117]
[1747997907045,0.03755248,186.06,186.04,5.3751]
[1747997907545,0.03755248,186.06,186.05,5.3749]
[1747997908746,0.03755248,186.06,186.05,107.4949]
[1747997908948,110.54,186.13,186.09,5.3736]
[1747997909134,110.54,186.13,186.05,107.3949821]
[1747997909339,4.98220359,186.16,186.05,107.3949821]
[1747997909547,5.3731,186.12,186.09,5.3735]
[1747997909946,5.41111381,186.12,186.09,5.41418029]
[1747997911544,5.3732,186.11,186.09,0.04068029]
[1747997912548,5.3734,186.1,186.09,0.04068029]
[1747997923956,0.03801381,186.12,186.09,0.04068029]
[1747997924653,0.03801381,186.12,186.09,5.41438029]
[1747997924654,5.41101381,186.12,186.09,5.41438029]
[1747997925060,0.03801381,186.12,186.09,0.04068029]
[1747997925555,5.3733,186.11,186.09,0.04068029]
[1747997925858,0.03801381,186.12,186.09,0.04068029]
[1747997926157,5.3734,186.1,186.09,0.04068029]
[1747997937569,115.5949821,186.1,186.03,4.42404933]
[1747997938064,5.3752,186.04,186.03,4.42404933]
[1747997940466,0.0339147,186.05,186.03,4.42404933]
[1747997940861,0.0339147,186.05,186.02,0.04057509]
[1747997941869,0.0339147,186.05,186.03,5.3753]
[1747997942268,0.0339147,186.05,186.02,0.04057509]
[1747997942464,0.0339147,186.05,186.03,5.3755]
[1747997944768,0.0339147,186.05,186.04,5.3752]
[1747997945870,0.0339147,186.05,186.03,5.3754]
[1747997947274,5.4088147,186.05,186.02,5.41627509]
[1747997948073,5.3755,186.03,186.02,0.04057509]
[1747997949271,5.3753,186.04,186.02,0.04057509]
[1747997950578,0.0339147,186.05,186.02,0.04057509]
[1747997951166,0.0339147,186.05,186.04,5.3752]
[1747997951776,0.0339147,186.05,186.03,5.3754]
[1747997952680,0.0339147,186.05,186.04,5.3752]
[1747997955181,0.0339147,186.05,186.03,5.3754]
[1747997956979,0.0339147,186.05,186.02,5.41627509]
[1747997956980,5.4089147,186.05,186.02,5.41627509]
[1747997957982,5.4089147,186.05,186.03,5.3755]
[1747997958785,0.0339147,186.05,186.03,5.3755]
[1747997958983,0.0339147,186.05,186.02,5.41627509]
[1747997959674,0.0339147,186.05,186.02,0.04057509]
[1747997960083,5.3755,186.03,186.02,0.04057509]
[1747997960285,5.2749821,186.03,185.97,4.42404933]
[1747997960483,5.3769,185.98,185.97,4.42404933]
[1747997962084,5.3772,185.97,185.96,0.03636321]
[1747997963481,5.377,185.98,185.96,0.03636321]
[1747997963680,0.03799119,185.99,185.96,0.03636321]
[1747997964280,5.41489119,185.99,185.96,0.03636321]
[1747997964687,0.03799119,185.99,185.96,0.03636321]
[1747997964886,5.3772,185.97,185.96,0.03636321]
[1747997966985,0.03799119,185.99,185.96,0.03636321]
[1747997968591,5.41479119,185.99,185.96,0.03636321]
[1747997969389,5.377,185.98,185.96,0.03636321]
[1747997970091,5.41469119,185.99,185.96,0.03636321]
[1747997970296,0.03799119,185.99,185.96,0.03636321]
[1747997971595,5.41489119,185.99,185.96,5.41386321]
[1747997972195,0.03799119,185.99,185.97,5.377]
[1747997972395,0.03799119,185.99,185.96,0.03636321]
[1747997972698,0.03799119,185.99,185.96,5.41366321]
[1747997973800,5.41469119,185.99,185.96,5.41366321]
[1747997974401,0.03799119,185.99,185.96,5.41366321]
[1747997977402,5.41469119,185.99,185.96,5.41366321]
[1747997979403,0.03799119,185.99,185.96,0.03636321]
[1747997980108,5.3772,185.97,185.96,0.03636321]
[1747997980405,0.03799119,185.99,185.96,0.03636321]
[1747997980605,5.377,185.98,185.96,0.03636321]
[1747997980799,0.03799119,185.99,185.96,0.03636321]
[1747997981105,5.3772,185.97,185.96,0.03636321]
[1747997982005,5.377,185.98,185.96,0.03636321]
[1747997982506,5.3772,185.97,185.96,0.03636321]
[1747997988015,0.03799119,185.99,185.96,0.03636321]
[1747997988508,0.03799119,185.99,185.97,5.377]
[1747997989610,5.41469119,185.99,185.96,5.41376321]
[1747997989909,0.03799119,185.99,185.96,0.03636321]
[1747997991210,0.03799119,185.99,185.97,5.3772]
[1747997993511,0.03799119,185.99,185.98,5.3769]
[1747998000116,0.03799119,185.99,185.97,5.3771]
[1747998000318,0.03799119,185.99,185.96,0.03636321]
[1747998001017,0.03799119,185.99,185.98,5.3769]
[1747998001320,0.03799119,185.99,185.96,0.03636321]
[1747998001712,0.03799119,185.99,185.97,5.377]
[1747998002017,0.03799119,185.99,185.96,0.03636321]
[1747998002212,0.03799119,185.99,185.98,5.3769]
[1747998002718,0.03799119,185.99,185.96,0.03636321]
[1747998003021,0.03799119,185.99,185.98,5.3769]
[1747998003209,110.22,186.03,185.96,102.19636321]
[1747998003210,110.22,186.03,185.97,5.2749821]
[1747998003406,4.98220359,186.05,185.98,110.06]
[1747998003716,4.98220359,186.05,186.0,5.2749821]
[1747998004113,4.98220359,186.05,185.98,110.06]
[1747998004114,0.03842174,186.04,186.01,0.04029012]
[1747998004505,5.3758,186.02,186.01,0.04029012]
[1747998008318,5.3758,186.02,186.01,9.012e-05]
[1747998009217,120.41790359,186.03,186.01,9.012e-05]
[1747998009815,115.04220359,186.03,186.01,9.012e-05]
[1747998010125,4.98220359,186.03,186.01,9.012e-05]
[1747998010322,4.98220359,186.03,186.02,5.3758]
[1747998010517,4.98220359,186.03,186.01,9.012e-05]
[1747998010719,0.03842174,186.04,186.01,9.012e-05]
[1747998011426,5.3758,186.02,186.01,9.012e-05]
[1747998025839,5.3778,185.95,185.94,4.42404933]
[1747998026135,115.3349821,186.03,185.94,4.42404933]
[1747998026332,5.3773,185.97,185.94,4.42404933]
[1747998026732,5.41492108,185.97,185.94,9.83739372]
[1747998027036,0.03762108,185.97,185.94,4.45939372]
[1747998027236,0.03762108,185.97,185.95,5.3775]
[1747998027733,0.03762108,185.97,185.94,0.03534439]
[1747998027921,0.03762108,185.97,185.96,5.3775]
[1747998034542,0.03762108,185.97,185.94,0.03534439]
[1747998035134,0.03762108,185.97,185.95,5.3778]
[1747998035734,0.03762108,185.97,185.96,5.3775]
[1747998035937,0.03762108,185.97,185.94,0.03534439]
[1747998036336,5.3777,185.96,185.94,0.03534439]
[1747998037036,5.3778,185.95,185.94,0.03534439]
[1747998038334,5.3776,185.96,185.94,0.03534439]
[1747998041142,5.3778,185.95,185.94,0.03534439]
[1747998047342,5.38,185.95,185.92,18.51504439]
[1747998047642,5.3795,185.89,185.88,25.11]
[1747998047841,115.3195,185.89,185.88,25.11]
[1747998048033,5.379,185.91,185.88,25.11]
[1747998048240,109.94,185.92,185.88,25.11]
[1747998048444,109.97699452,185.92,185.88,30.52986533]
[1747998049545,109.97699452,185.92,185.88,25.15006533]
[1747998050150,0.03699452,185.92,185.88,25.15006533]
[1747998050833,0.03699452,185.92,185.91,5.379]
[1747998054549,0.03699452,185.92,185.89,5.3793]
[1747998054750,0.03699452,185.92,185.88,25.15006533]
[1747998055549,0.03699452,185.92,185.9,5.3792]
[1747998056851,5.41569452,185.92,185.89,5.3795]
[1747998057150,0.03699452,185.92,185.88,25.15006533]
[1747998057650,0.03699452,185.92,185.9,5.3792]
[1747998058453,0.03699452,185.92,185.91,5.379]
[1747998058952,0.03699452,185.92,185.9,5.3791]
[1747998059347,0.03699452,185.92,185.88,25.15006533]
[1747998060153,0.03699452,185.92,185.91,5.379]
[1747998063658,0.03699452,185.92,185.88,132.62504743]
[1747998063659,0.03699452,185.92,185.9,5.3791]
[1747998064257,0.03699452,185.92,185.89,5.3794]
[1747998064559,0.03699452,185.92,185.88,25.15006533]
[1747998064761,5.3795,185.9,185.88,25.15006533]
[1747998065060,0.03699452,185.92,185.88,25.15006533]
[1747998065354,0.03699452,185.92,185.89,5.3793]
[1747998065955,0.03699452,185.92,185.88,30.52986533]
[1747998066150,0.03699452,185.92,185.88,25.15006533]
[1747998066350,5.41589452,185.92,185.88,25.15006533]
[1747998066551,5.41589452,185.92,185.88,30.52966533]
[1747998067052,5.379,185.91,185.88,30.52966533]
[1747998067246,0.03699452,185.92,185.88,25.15006533]
[1747998067654,5.3794,185.9,185.88,25.15006533]
[1747998067854,0.03699452,185.92,185.88,25.15006533]
[1747998068260,5.379,185.91,185.88,25.15006533]
[1747998068561,0.03699452,185.92,185.88,25.15006533]
[1747998069454,5.41579452,185.92,185.89,5.3794]
[1747998069863,0.03699452,185.92,185.88,25.15006533]
[1747998070063,0.03699452,185.92,185.89,5.3795]
[1747998070361,0.03699452,185.92,185.88,25.15006533]
[1747998070859,5.41579452,185.92,185.89,5.3795]
[1747998071261,0.03699452,185.92,185.89,5.3795]
[1747998072163,5.41569452,185.92,185.89,5.3795]
[1747998072358,0.03699452,185.92,185.88,25.15006533]
[1747998072867,5.41579452,185.92,185.89,5.3795]
[1747998074771,0.03699452,185.92,185.88,25.15006533]
[1747998075664,0.03699452,185.92,185.91,5.379]
[1747998076161,5.02452647,185.96,185.95,5.3778]
[1747998077563,0.0385141,185.97,185.96,5.3775]
[1747998086378,0.0385141,185.97,185.94,5.4168405]
[1747998086574,0.0385141,185.97,185.94,0.0390405]
[1747998086770,5.3777,185.96,185.94,0.0390405]
[1747998087377,0.0385141,185.97,185.94,0.0390405]
[1747998087979,0.0385141,185.97,185.96,5.3775]
[1747998091672,102.18,186.08,185.94,0.0390405]
[1747998091673,11.96741398,186.09,185.94,0.0390405]
[1747998091875,5.2749821,186.03,185.93,21.48]
[1747998092179,5.3775,185.96,185.93,21.48]
[1747998092572,5.2749821,186.0,185.93,21.48]
[1747998092772,0.0361075,185.98,185.95,0.03468174]
[1747998092972,109.78,185.97,185.93,21.48]
[1747998093373,5.3781,185.94,185.93,21.48]
[1747998094977,5.3781,185.94,185.93,15.511]
[1747998095177,5.3781,185.94,185.93,12.5265]
[1747998100879,5.3781,185.94,185.93,4.2682]
[1747998105285,109.78,185.97,185.93,4.2682]
[1747998106277,0.0361075,185.98,185.93,4.2682]
[1747998106882,0.0361075,185.98,185.97,5.3772]
[1747998107085,6.69243188,186.03,185.93,4.2682]
[1747998107286,12.06813188,186.03,185.99,5.3764]
[1747998107485,6.69243188,186.03,185.99,5.3764]
[1747998107784,109.8,186.04,185.99,5.3764]
[1747998107984,5.3758,186.02,185.95,109.8]
[1747998108185,0.03891488,186.0,185.97,0.03719787]
[1747998108389,0.03891488,186.0,185.98,5.3768]
[1747998108788,0.03891488,186.0,185.97,0.03719787]
[1747998109189,0.03891488,186.0,185.97,5.41429787]
[1747998109690,5.41531488,186.0,185.97,5.41429787]
[1747998110087,0.03891488,186.0,185.98,5.3768]
[1747998110486,0.03891488,186.0,185.97,0.03719787]
[1747998110693,0.03891488,186.0,185.99,5.3766]
[1747998110891,5.3757,186.03,185.99,5.3766]
[1747998111192,109.8,186.04,185.99,5.3766]
[1747998111493,109.8,186.04,185.98,5.3768]
[1747998111793,0.03461931,186.03,185.98,5.3768]
[1747998112188,5.3763,186.01,185.98,5.3768]
[1747998112386,0.03461931,186.03,185.97,0.03719787]
[1747998112985,5.376,186.02,185.99,5.3766]
[1747998113190,109.78,186.21,186.0,211.98]
[1747998113389,109.78,186.21,186.09,5.2749821]
[1747998113588,109.78,186.21,186.1,109.78]
[1747998113788,109.78,186.25,186.12,5.2749821]